fUSD/lending_fUSD_20240105
["ID","MTS","AMOUNT","RATE_DAILY","PERIOD"]
[310336497,1704478267071,-500.0,0.0003041,2]
[310336498,1704478267082,-3407.55,0.0003041,2]
[310336499,1704478267093,-500.0,0.0003041,2]
[310336500,1704478267104,-298.34250907,0.0003041,2]
[310336501,1704478267118,-201.65749093,0.0003041,2]
[310336502,1704478267129,-500.0,0.0003041,2]
[310336503,1704478267146,-28.41375673,0.0003041,2]
[310336504,1704478267159,-499.61575797,0.0003041,2]
[310336505,1704478267170,-182.29424203,0.0003041,2]
[310336506,1704478267185,-375.55575797,0.0003041,2]
[310336507,1704478267195,-500.0,0.0003041,2]
[310336508,1704478267206,-500.0,0.0003041,2]
[310336509,1704478267217,-97.52853003,0.0003041,2]
[310336510,1704478267232,-821.90744022,0.0003041,2]
[310336511,1704478267246,-688.57565016,0.0003041,2]
[310336512,1704478267259,-641.74232586,0.0003041,2]
[310336513,1704478267273,-1810.68367416,0.0003041,2]
[310336514,1704478267825,-500.0,0.00030136,2]
[310336515,1704478267836,-500.0,0.00030136,2]
[310336516,1704478267847,-741.18,0.00030136,2]
[310336517,1704478267858,-68.8741847,0.0003041,2]
[310336518,1704478267873,-3610.74819487,0.0003041,2]
[310336519,1704478267885,-3440.39,0.0003041,2]
[310336520,1704478267897,-472.1259544,0.0003041,2]
[310336521,1704478267909,-3091.0640456,0.0003041,2]
[310336522,1704478267919,-500.0,0.0003041,2]
[310336523,1704478267928,-500.0,0.0003041,2]
[310336524,1704478267940,-500.0,0.0003041,2]
[310336525,1704478267949,-448.4023544,0.0003041,2]
[310336526,1704478267961,-51.5976456,0.0003041,2]
[310336527,1704478267972,-1558.06282375,0.0003041,2]
[310336528,1704478267984,-1704.14634174,0.0003041,2]
[310336529,1704478268001,-549.8873675,0.0003041,2]
[310336530,1704478268013,-394.96999999,0.0003041,2]
[310336531,1704478268024,-2262.92912069,0.0003041,2]
[310336532,1704478268047,-318.63434633,0.0003041,2]
[310336533,1704478268056,-500.0,0.0003041,2]
[310336534,1704478268068,-500.0,0.0003041,2]
[310336535,1704478268077,-4014.71,0.0003041,2]
[310336536,1704478268087,-500.0,0.0003041,2]
[310336537,1704478268096,-500.0,0.0003041,2]
[310336538,1704478268106,-500.0,0.0003041,2]
[310336539,1704478268115,-500.0,0.0003041,2]
[310336540,1704478268140,-500.0,0.0003041,2]
[310336541,1704478268158,-500.0,0.0003041,2]
[310336542,1704478268174,-500.0,0.0003041,2]
[310336543,1704478268189,-500.0,0.0003041,2]
[310336544,1704478268205,-502.36035241,0.0003041,2]
[310336545,1704478268221,-5312.22,0.0003041,2]
[310336546,1704478268237,-1075.0,0.0003041,2]
[310336547,1704478268250,-525.38,0.0003041,2]
[310336548,1704478268263,-500.0,0.0003041,2]
[310336549,1704478268279,-839.43,0.0003041,2]
[310336550,1704478268293,-806.57,0.0003041,2]
[310336551,1704478268308,-500.0,0.0003041,2]
[310336552,1704478268322,-1109.02,0.0003041,2]
[310336553,1704478268334,-738.72,0.0003041,2]
[310336554,1704478268350,-500.0,0.0003041,2]
[310336555,1704478268367,-500.0,0.0003041,2]
[310336556,1704478268381,-500.0,0.0003041,2]
[310336557,1704478268395,-4237.78,0.0003041,2]
[310336558,1704478268409,-500.0,0.0003041,2]
[310336559,1704478268425,-3366.02,0.0003041,2]
[310336560,1704478268441,-500.0,0.0003041,2]
[310336561,1704478268456,-707.02,0.0003041,2]
[310336562,1704478268467,-3417.32,0.0003041,2]
[310336563,1704478268479,-500.0,0.0003041,2]
[310336564,1704478268493,-500.0,0.0003041,2]
[310336565,1704478268507,-545.37,0.0003041,2]
[310336566,1704478268526,-500.0,0.0003041,2]
[310336567,1704478268538,-500.0,0.0003041,2]
[310336568,1704478268549,-195.97563627,0.0003041,2]
[310336569,1704478268562,-500.0,0.0003041,2]
[310336570,1704478268586,-752.62,0.0003041,2]
[310336571,1704478268601,-3044.31,0.0003041,2]
[310336572,1704478268615,-638.78,0.0003041,2]
[310336573,1704478268629,-500.0,0.0003041,2]
[310336574,1704478268643,-1086.71,0.0003041,2]
[310336575,1704478268656,-500.0,0.0003041,2]
[310336576,1704478268670,-500.0,0.0003041,2]
[310336577,1704478268684,-2631.42,0.0003041,2]
[310336578,1704478268697,-500.0,0.0003041,2]
[310336579,1704478268710,-500.0,0.0003041,2]
[310336580,1704478268723,-500.0,0.0003041,2]
[310336581,1704478268736,-500.0,0.0003041,2]
[310336582,1704478268749,-908.49,0.0003041,2]
[310336583,1704478268762,-7095.16,0.0003041,2]
[310336584,1704478268775,-500.0,0.0003041,2]
[310336585,1704478268788,-500.0,0.0003041,2]
[310336586,1704478268800,-1044.21,0.0003041,2]
[310336587,1704478268813,-500.0,0.0003041,2]
[310336588,1704478268826,-500.0,0.0003041,2]
[310336589,1704478268838,-500.0,0.0003041,2]
[310336590,1704478268851,-2069.53,0.0003041,2]
[310336591,1704478268864,-500.0,0.0003041,2]
[310336592,1704478268876,-500.0,0.0003041,2]
[310336593,1704478268889,-607.32,0.0003041,2]
[310336594,1704478268901,-648.8925086,0.0003041,2]
[310336595,1704478268913,-704.5,0.0003041,2]
[310336596,1704478268925,-500.0,0.0003041,2]
[310336597,1704478268939,-9673.95,0.0003041,2]
[310336598,1704478268950,-500.0,0.0003041,2]
[310336599,1704478268963,-500.0,0.0003041,2]
[310336600,1704478268975,-4414.62,0.0003041,2]
[310336601,1704478268987,-500.0,0.0003041,2]
[310336602,1704478268999,-500.0,0.0003041,2]
[310336603,1704478269012,-637.81,0.0003041,2]
[310336604,1704478269024,-555.95,0.0003041,2]
[310336605,1704478269036,-5260.32,0.0003041,2]
[310336606,1704478269049,-500.0,0.0003041,2]
[310336607,1704478269061,-500.0,0.0003041,2]
[310336608,1704478269073,-500.0,0.0003041,2]
[310336609,1704478269086,-500.0,0.0003041,2]
[310336610,1704478269098,-1535.24,0.0003041,2]
[310336611,1704478269111,-500.0,0.0003041,2]
[310336612,1704478269124,-2289.62,0.0003041,2]
[310336613,1704478269136,-1697.23,0.0003041,2]
[310336614,1704478269150,-2092.8,0.0003041,2]
[310336615,1704478269162,-623.49,0.0003041,2]
[310336616,1704478269174,-500.0,0.0003041,2]
[310336617,1704478269187,-500.0,0.0003041,2]
[310336618,1704478269199,-500.0,0.0003041,2]
[310336619,1704478269211,-500.0,0.0003041,2]
[310336620,1704478269223,-2062.5,0.0003041,2]
[310336621,1704478269236,-500.0,0.0003041,2]
[310336622,1704478269247,-4071.94,0.0003041,2]
[310336623,1704478269260,-500.0,0.0003041,2]
[310336624,1704478269273,-1878.56,0.0003041,2]
[310336625,1704478269285,-500.0,0.0003041,2]
[310336626,1704478269297,-1499.09,0.0003041,2]
[310336627,1704478269310,-500.0,0.0003041,2]
[310336628,1704478269324,-1830.35,0.0003041,2]
[310336629,1704478269337,-3669.22,0.0003041,2]
[310336630,1704478269349,-500.0,0.0003041,2]
[310336631,1704478269362,-3630.26,0.0003041,2]
[310336632,1704478269374,-500.0,0.0003041,2]
[310336633,1704478269387,-500.0,0.0003041,2]
[310336634,1704478269398,-500.0,0.0003041,2]
[310336635,1704478269410,-500.0,0.0003041,2]
[310336636,1704478269424,-2503.53,0.0003041,2]
[310336637,1704478269437,-500.0,0.0003041,2]
[310336638,1704478269449,-739.13,0.0003041,2]
[310336639,1704478269462,-500.0,0.0003041,2]
[310336640,1704478269474,-500.0,0.0003041,2]
[310336641,1704478269486,-500.0,0.0003041,2]
[310336642,1704478269499,-500.0,0.0003041,2]
[310336643,1704478269512,-500.0,0.0003041,2]
[310336644,1704478269524,-1741.7,0.0003041,2]
[310336645,1704478269537,-4170.19,0.0003041,2]
[310336646,1704478269549,-500.0,0.0003041,2]
[310336647,1704478269561,-3393.61,0.0003041,2]
[310336648,1704478269574,-711.68,0.0003041,2]
[310336649,1704478269586,-14143.48,0.0003041,2]
[310336650,1704478269599,-500.0,0.0003041,2]
[310336651,1704478269612,-1956.72,0.0003041,2]
[310336652,1704478269624,-500.0,0.0003041,2]
[310336653,1704478269637,-606.43,0.0003041,2]
[310336654,1704478269649,-500.0,0.0003041,2]
[310336655,1704478269662,-500.0,0.0003041,2]
[310336656,1704478269674,-500.0,0.0003041,2]
[310336657,1704478269686,-4512.48,0.0003041,2]
[310336658,1704478269699,-2194.25,0.0003041,2]
[310336659,1704478269712,-500.0,0.0003041,2]
[310336660,1704478269724,-5826.76,0.0003041,2]
[310336661,1704478269736,-500.0,0.0003041,2]
[310336662,1704478269748,-500.0,0.0003041,2]
[310336663,1704478269757,-1286.47,0.0003041,2]
[310336664,1704478269767,-500.0,0.0003041,2]
[310336665,1704478269776,-1557.93,0.0003041,2]
[310336666,1704478269786,-500.0,0.0003041,2]
[310336667,1704478269795,-500.0,0.0003041,2]
[310336668,1704478269804,-500.0,0.0003041,2]
[310336669,1704478269812,-500.0,0.0003041,2]
[310336670,1704478269822,-500.0,0.0003041,2]
[310336671,1704478269831,-500.0,0.0003041,2]
[310336672,1704478269841,-500.0,0.0003041,2]
[310336673,1704478269850,-2234.59,0.0003041,2]
[310336674,1704478269859,-500.0,0.0003041,2]
[310336675,1704478269868,-500.0,0.0003041,2]
[310336676,1704478269878,-500.0,0.0003041,2]
[310336677,1704478269888,-500.0,0.0003041,2]
[310336678,1704478269898,-658.24,0.0003041,2]
[310336679,1704478269907,-626.007078,0.0003041,2]
[310336680,1704478269916,-500.0,0.0003041,2]
[310336681,1704478269926,-500.0,0.0003041,2]
[310336682,1704478269937,-500.0,0.0003041,2]
[310336683,1704478269946,-4166.42,0.0003041,2]
[310336684,1704478269955,-3384.57,0.0003041,2]
[310336685,1704478269964,-3329.36,0.0003041,2]
[310336686,1704478269974,-5701.04,0.0003041,2]
[310336687,1704478269984,-500.0,0.0003041,2]
[310336688,1704478269993,-500.0,0.0003041,2]
[310336689,1704478270003,-500.0,0.0003041,2]
[310336690,1704478270013,-500.0,0.0003041,2]
[310336691,1704478270023,-500.0,0.0003041,2]
[310336692,1704478270032,-1099.53,0.0003041,2]
[310336693,1704478270043,-500.0,0.0003041,2]
[310336694,1704478270055,-1999.67,0.0003041,2]
[310336695,1704478270064,-540.4,0.0003041,2]
[310336696,1704478270073,-2540.02,0.0003041,2]
[310336697,1704478270081,-500.0,0.0003041,2]
[310336698,1704478270091,-500.0,0.0003041,2]
[310336699,1704478270100,-500.0,0.0003041,2]
[310336700,1704478270109,-500.0,0.0003041,2]
[310336701,1704478270118,-1336.43,0.0003041,2]
[310336702,1704478270127,-912.83,0.0003041,2]
[310336703,1704478270136,-500.0,0.0003041,2]
[310336704,1704478270146,-1496.37,0.0003041,2]
[310336705,1704478270155,-500.0,0.0003041,2]
[310336706,1704478270165,-3456.02,0.0003041,2]
[310336707,1704478270174,-709.31,0.0003041,2]
[310336708,1704478270184,-2028.82,0.0003041,2]
[310336709,1704478270193,-500.0,0.0003041,2]
[310336710,1704478270202,-500.0,0.0003041,2]
[310336711,1704478270211,-500.0,0.0003041,2]
[310336712,1704478270221,-3033.76,0.0003041,2]
[310336713,1704478270229,-500.0,0.0003041,2]
[310336714,1704478270629,-500.0,0.0003041,2]
[310336715,1704478270650,-500.0,0.0003041,2]
[310336716,1704478270671,-2660.01,0.0003041,2]
[310336717,1704478270695,-500.0,0.0003041,2]
[310336718,1704478270705,-797.44,0.0003041,2]
[310336719,1704478270714,-533.09,0.0003041,2]
[310336720,1704478270724,-500.0,0.0003041,2]
[310336721,1704478270733,-500.0,0.0003041,2]
[310336722,1704478270743,-500.0,0.0003041,2]
[310336723,1704478270752,-5160.19,0.0003041,2]
[310336724,1704478270761,-500.0,0.0003041,2]
[310336725,1704478270770,-500.0,0.0003041,2]
[310336726,1704478270779,-500.0,0.0003041,2]
[310336727,1704478270789,-500.0,0.0003041,2]
[310336728,1704478270798,-1204.65,0.0003041,2]
[310336729,1704478270808,-641.02,0.0003041,2]
[310336730,1704478270817,-500.0,0.0003041,2]
[310336731,1704478270827,-500.0,0.0003041,2]
[310336732,1704478270836,-500.0,0.0003041,2]
[310336733,1704478270846,-500.0,0.0003041,2]
[310336734,1704478270855,-500.0,0.0003041,2]
[310336735,1704478270864,-2743.63,0.0003041,2]
[310336736,1704478270873,-500.0,0.0003041,2]
[310336737,1704478270883,-1248.34,0.0003041,2]
[310336738,1704478270893,-2488.0,0.0003041,2]
[310336739,1704478270902,-1702.34,0.0003041,2]
[310336740,1704478270911,-726.84,0.0003041,2]
[310336741,1704478270921,-2317.11,0.0003041,2]
[310336742,1704478270931,-500.0,0.0003041,2]
[310336743,1704478270940,-3521.58,0.0003041,2]
[310336744,1704478270950,-500.0,0.0003041,2]
[310336745,1704478270959,-930.79,0.0003041,2]
[310336746,1704478270968,-615.37,0.0003041,2]
[310336747,1704478270978,-500.0,0.0003041,2]
[310336748,1704478270987,-716.43,0.0003041,2]
[310336749,1704478270996,-500.0,0.0003041,2]
[310336750,1704478271005,-1089.63,0.0003041,2]
[310336751,1704478271015,-500.0,0.0003041,2]
[310336752,1704478271024,-500.0,0.0003041,2]
[310336753,1704478271036,-23051.48,0.0003041,2]
[310336754,1704478271045,-1651.5,0.0003041,2]
[310336755,1704478271056,-500.0,0.0003041,2]
[310336756,1704478271066,-1350.99,0.0003041,2]
[310336757,1704478271075,-500.0,0.0003041,2]
[310336758,1704478271084,-500.0,0.0003041,2]
[310336759,1704478271094,-2082.4,0.0003041,2]
[310336760,1704478271103,-500.0,0.0003041,2]
[310336761,1704478271113,-556.59,0.0003041,2]
[310336762,1704478271122,-500.0,0.0003041,2]
[310336763,1704478271131,-1838.79,0.0003041,2]
[310336764,1704478271141,-2129.91,0.0003041,2]
[310336765,1704478271150,-500.0,0.0003041,2]
[310336766,1704478271160,-4628.16,0.0003041,2]
[310336767,1704478271169,-1114.73,0.0003041,2]
[310336768,1704478271178,-274.34089062,0.0003041,2]
[310336769,1704478271189,-500.0,0.0003041,2]
[310336770,1704478271199,-1488.21,0.0003041,2]
[310336771,1704478271209,-229.11592645,0.0003041,2]
[310336772,1704478271218,-500.0,0.0003041,2]
[310336773,1704478271227,-527.83,0.0003041,2]
[310336774,1704478271236,-500.0,0.0003041,2]
[310336775,1704478271245,-633.9,0.0003041,2]
[310336776,1704478271254,-1099.69,0.0003041,2]
[310336777,1704478271263,-1126.7,0.0003041,2]
[310336778,1704478271274,-500.0,0.0003041,2]
[310336779,1704478271283,-3045.53,0.0003041,2]
[310336780,1704478271293,-6507.43,0.0003041,2]
[310336781,1704478271302,-522.45871941,0.0003041,2]
[310336782,1704478271314,-500.0,0.0003041,2]
[310336783,1704478271324,-3728.5,0.0003041,2]
[310336784,1704478271334,-500.0,0.0003041,2]
[310336785,1704478271344,-1675.29,0.0003041,2]
[310336786,1704478271354,-573.52,0.0003041,2]
[310336787,1704478271363,-472.45095714,0.0003041,2]
[310336788,1704478271372,-500.0,0.0003041,2]
[310336789,1704478271382,-500.0,0.0003041,2]
[310336790,1704478271391,-500.0,0.0003041,2]
[310336791,1704478271400,-500.0,0.0003041,2]
[310336792,1704478271410,-500.0,0.0003041,2]
[310336793,1704478271419,-1056.13,0.0003041,2]
[310336794,1704478271429,-500.0,0.0003041,2]
[310336795,1704478271441,-1386.34,0.0003041,2]
[310336796,1704478271451,-2360.95,0.0003041,2]
[310336797,1704478271462,-3613.86,0.0003041,2]
[310336798,1704478271472,-623.8,0.0003041,2]
[310336799,1704478271482,-500.0,0.0003041,2]
[310336800,1704478271492,-500.0,0.0003041,2]
[310336801,1704478271502,-500.0,0.0003041,2]
[310336802,1704478271511,-500.0,0.0003041,2]
[310336803,1704478271521,-500.0,0.0003041,2]
[310336804,1704478271530,-500.0,0.0003041,2]
[310336805,1704478271540,-2949.16,0.0003041,2]
[310336806,1704478271550,-500.0,0.0003041,2]
[310336807,1704478271559,-3573.88,0.0003041,2]
[310336808,1704478271570,-33429.29,0.0003041,2]
[310336809,1704478271580,-5044.13,0.0003041,2]
[310336810,1704478271589,-1529.18,0.0003041,2]
[310336811,1704478271598,-10156.38,0.0003041,2]
[310336812,1704478271608,-500.0,0.0003041,2]
[310336813,1704478271617,-500.0,0.0003041,2]
[310336814,1704478271627,-500.0,0.0003041,2]
[310336815,1704478271637,-1290.41,0.0003041,2]
[310336816,1704478271646,-500.0,0.0003041,2]
[310336817,1704478271656,-500.0,0.0003041,2]
[310336818,1704478271665,-500.0,0.0003041,2]
[310336819,1704478271675,-2129.46,0.0003041,2]
[310336820,1704478271687,-500.0,0.0003041,2]
[310336821,1704478271696,-500.0,0.0003041,2]
[310336822,1704478271707,-500.0,0.0003041,2]
[310336823,1704478271716,-661.6,0.0003041,2]
[310336824,1704478271726,-500.0,0.0003041,2]
[310336825,1704478271735,-2745.69,0.0003041,2]
[310336826,1704478271745,-1210.81,0.0003041,2]
[310336827,1704478271755,-500.0,0.0003041,2]
[310336828,1704478271765,-4865.26,0.0003041,2]
[310336829,1704478271775,-500.0,0.0003041,2]
[310336830,1704478271786,-1679.07,0.0003041,2]
[310336831,1704478271795,-3110.2,0.0003041,2]
[310336832,1704478271805,-500.0,0.0003041,2]
[310336833,1704478271815,-500.0,0.0003041,2]
[310336834,1704478271824,-500.0,0.0003041,2]
[310336835,1704478271833,-2863.03,0.0003041,2]
[310336836,1704478271844,-970.79,0.0003041,2]
[310336837,1704478271853,-500.0,0.0003041,2]
[310336838,1704478271862,-1336.97,0.0003041,2]
[310336839,1704478271871,-500.0,0.0003041,2]
[310336840,1704478271883,-502.73,0.0003041,2]
[310336841,1704478271894,-629.52,0.0003041,2]
[310336842,1704478271903,-500.0,0.0003041,2]
[310336843,1704478271912,-496.05368689,0.0003041,2]
[310336844,1704478271922,-500.0,0.0003041,2]
[310336845,1704478271933,-500.0,0.0003041,2]
[310336846,1704478271942,-500.0,0.0003041,2]
[310336847,1704478271952,-500.0,0.0003041,2]
[310336848,1704478271962,-741.18,0.0003041,2]
[310336849,1704478271973,-151.0,0.0003041,7]
[310336850,1704478271983,-151.0,0.0003041,7]
[310336851,1704478271993,-152.32,0.00030417,2]
[310336852,1704478272002,-5000.0,0.00030418,2]
[310336853,1704478272012,-574.93,0.00030515,2]
[310336854,1704478272021,-213.62900455,0.00030551,18]
[310336855,1704478272032,-634.47455717,0.00030584,2]
[310336856,1704478272041,-2542.78,0.0003062,2]
[310336857,1704478272051,-500.0,0.00030664,2]
[310336858,1704478272061,-624.62077968,0.00030683,2]
[310336859,1704478272071,-721.33,0.00030683,2]
[310336860,1704478272081,-721.33,0.00030683,2]
[310336861,1704478272091,-551.5328628,0.00030684,2]
[310336862,1704478272103,-500.0,0.00030684,2]
[310336863,1704478272112,-500.0,0.00030684,2]
[310336864,1704478272121,-500.0,0.00030684,2]
[310336865,1704478272130,-500.0,0.00030684,2]
[310336866,1704478272139,-500.0,0.00030684,2]
[310336867,1704478272149,-500.0,0.00030684,2]
[310336868,1704478272158,-500.0,0.00030684,2]
[310336869,1704478272168,-500.0,0.00030684,2]
[310336870,1704478272178,-251.77919258,0.00030684,2]
[310336871,1704478272190,-500.0,0.00030684,2]
[310336872,1704478272199,-405.80507211,0.00030684,2]
[310336873,1704478272208,-500.0,0.00030684,2]
[310336874,1704478272217,-500.0,0.00030684,2]
[310336875,1704478272227,-247.92832569,0.00030684,2]
[310336876,1704478272237,-500.0,0.00030684,2]
[310336877,1704478272248,-224.71203332,0.00030684,2]
[310336878,1704478272257,-500.0,0.00030684,2]
[310336879,1704478272268,-500.0,0.00030684,2]
[310336880,1704478272277,-500.0,0.00030684,2]
[310336881,1704478272288,-500.0,0.00030684,2]
[310336882,1704478272297,-500.0,0.00030684,2]
[310336883,1704478272306,-596.2,0.00030684,2]
[310336884,1704478272316,-500.0,0.00030684,2]
[310336885,1704478272326,-500.0,0.00030684,2]
[310336886,1704478272336,-500.0,0.00030684,2]
[310336887,1704478272346,-500.0,0.00030684,2]
[310336888,1704478272356,-502.05,0.00030684,2]
[310336889,1704478272366,-500.0,0.00030684,2]
[310336890,1704478272376,-500.0,0.00030684,2]
[310336891,1704478272387,-546.46,0.00030684,2]
[310336892,1704478272397,-427.35,0.00030684,2]
[310336893,1704478272407,-500.0,0.00030684,2]
[310336894,1704478272417,-500.0,0.00030684,2]
[310336895,1704478272427,-587.5,0.00030684,2]
[310336896,1704478272440,-500.0,0.00030684,2]
[310336897,1704478272449,-500.0,0.00030684,2]
[310336898,1704478272459,-500.0,0.00030684,2]
[310336899,1704478272469,-500.0,0.00030684,2]
[310336900,1704478272478,-590.2,0.00030684,2]
[310336901,1704478272487,-500.0,0.00030684,2]
[310336902,1704478272496,-500.0,0.00030684,2]
[310336903,1704478272506,-500.0,0.00030684,2]
[310336904,1704478272515,-502.86,0.00030684,2]
[310336905,1704478272525,-500.0,0.00030684,2]
[310336906,1704478272534,-500.0,0.00030684,2]
[310336907,1704478272544,-500.0,0.00030684,2]
[310336908,1704478272554,-500.0,0.00030684,2]
[310336909,1704478272566,-500.0,0.00030684,2]
[310336910,1704478272575,-500.0,0.00030684,2]
[310336911,1704478272584,-511.49008313,0.00030684,2]
[310336912,1704478272594,-599.03947974,0.00030684,2]
[310336913,1704478272603,-1323.87,0.00030684,2]
[310336914,1704478272612,-935.12,0.00030684,2]
[310336915,1704478272622,-500.0,0.00030684,2]
[310336916,1704478272632,-673.23,0.00030684,2]
[310336917,1704478272641,-1097.62,0.00030684,2]
[310336918,1704478272650,-500.0,0.00030684,2]
[310336919,1704478272660,-301.60706745,0.00030684,2]
[310336920,1704478272670,-2121.94,0.00030684,2]
[310336921,1704478272680,-520.77,0.00030684,2]
[310336922,1704478272691,-636.56913824,0.00030684,2]
[310336923,1704478272701,-500.0,0.00030684,2]
[310336924,1704478272711,-500.0,0.00030684,2]
[310336925,1704478272720,-500.0,0.00030684,2]
[310336926,1704478272730,-521.11,0.00030684,2]
[310336927,1704478272739,-500.0,0.00030684,2]
[310336928,1704478272748,-1030.08,0.00030684,2]
[310336929,1704478272758,-500.0,0.00030684,2]
[310336930,1704478272767,-500.0,0.00030684,2]
[310336931,1704478272783,-500.0,0.00030684,2]
[310336932,1704478272800,-500.0,0.00030684,2]
[310336933,1704478272810,-500.0,0.00030684,2]
[310336934,1704478272819,-500.0,0.00030684,2]
[310336935,1704478272829,-500.0,0.00030684,2]
[310336936,1704478272839,-500.0,0.00030684,2]
[310336937,1704478272850,-500.0,0.00030684,2]
[310336938,1704478272861,-500.0,0.00030684,2]
[310336939,1704478272874,-500.0,0.00030684,2]
[310336940,1704478272885,-500.0,0.00030684,2]
[310336941,1704478272897,-500.0,0.00030684,2]
[310336942,1704478272908,-500.0,0.00030684,2]
[310336943,1704478272918,-534.5011763,0.00030684,2]
[310336944,1704478272928,-500.0,0.00030684,2]
[310336945,1704478272940,-500.0,0.00030684,2]
[310336946,1704478272950,-500.0,0.00030684,2]
[310336947,1704478272960,-500.0,0.00030684,2]
[310336948,1704478272970,-500.0,0.00030684,2]
[310336949,1704478272980,-502.94092091,0.00030684,2]
[310336950,1704478272990,-500.0,0.00030684,2]
[310336951,1704478273000,-310.62,0.00030684,2]
[310336952,1704478273010,-1042.97,0.00030684,2]
[310336953,1704478273020,-500.0,0.00030684,2]
[310336954,1704478273030,-500.0,0.00030684,2]
[310336955,1704478273040,-500.0,0.00030684,2]
[310336956,1704478273049,-500.0,0.00030684,2]
[310336957,1704478273059,-500.0,0.00030684,2]
[310336958,1704478273069,-881.97,0.00030684,2]
[310336959,1704478273079,-500.0,0.00030684,2]
[310336960,1704478273089,-526.94454391,0.00030684,2]
[310336961,1704478273099,-500.0,0.00030684,2]
[310336962,1704478273109,-500.0,0.00030684,2]
[310336963,1704478273118,-644.16236283,0.00030684,2]
[310336964,1704478273128,-500.0,0.00030684,2]
[310336965,1704478273138,-500.0,0.00030684,2]
[310336966,1704478273148,-500.0,0.00030684,2]
[310336967,1704478273158,-507.27212634,0.00030684,2]
[310336968,1704478273167,-520.83,0.00030684,2]
[310336969,1704478273177,-500.0,0.00030684,2]
[310336970,1704478273187,-500.0,0.00030684,2]
[310336971,1704478273197,-500.0,0.00030684,2]
[310336972,1704478273206,-1357.83,0.00030684,2]
[310336973,1704478273215,-500.0,0.00030684,2]
[310336974,1704478273224,-500.0,0.00030684,2]
[310336975,1704478273234,-500.0,0.00030684,2]
[310336976,1704478273244,-500.0,0.00030684,2]
[310336977,1704478273254,-500.0,0.00030684,2]
[310336978,1704478273264,-500.0,0.00030684,2]
[310336979,1704478273274,-500.0,0.00030684,2]
[310336980,1704478273285,-1087.03,0.00030684,2]
[310336981,1704478273294,-635.04,0.00030684,2]
[310336982,1704478273304,-500.0,0.00030684,2]
[310336983,1704478273313,-500.0,0.00030684,2]
[310336984,1704478273323,-500.0,0.00030684,2]
[310336985,1704478273333,-267.68604228,0.00030684,2]
[310336986,1704478273343,-500.0,0.00030684,2]
[310336987,1704478273352,-500.0,0.00030684,2]
[310336988,1704478273361,-500.0,0.00030684,2]
[310336989,1704478273371,-500.0,0.00030684,2]
[310336990,1704478273380,-500.0,0.00030684,2]
[310336991,1704478273390,-500.0,0.00030684,2]
[310336992,1704478273399,-500.0,0.00030684,2]
[310336993,1704478273409,-500.0,0.00030684,2]
[310336994,1704478273418,-2285.83,0.00030684,2]
[310336995,1704478273428,-500.0,0.00030684,2]
[310336996,1704478273438,-500.0,0.00030684,2]